bitfinex-derivatives/quotes_BNBF0:USTF0_20250630
["timestamp","ask_amount","ask_price","bid_price","bid_amount"]
[1751272872994,3.8084699,654.78,653.46,3.097]
[1751272873295,0.26615373,653.81,653.46,3.097]
[1751272873495,3.8084699,654.78,653.46,3.097]
[1751272873794,0.26615373,653.81,653.46,3.097]
[1751272873997,3.8084699,654.79,653.46,3.097]
[1751272874198,0.26615272,653.81,653.46,3.097]
[1751272874402,3.8084699,654.77,653.47,2.823]
[1751272874703,0.26615475,653.81,653.47,2.823]
[1751272874998,3.8084699,654.77,653.47,2.823]
[1751272875298,0.26615373,653.81,653.47,2.823]
[1751272875597,3.8084699,654.78,653.47,2.823]
[1751272875800,0.26615272,653.81,653.47,2.823]
[1751272875998,3.8084699,654.78,653.47,2.823]
[1751272876203,0.26615272,653.81,653.47,2.823]
[1751272876504,3.8084699,654.82,653.47,2.823]
[1751272877300,0.26614865,654.49,653.47,2.823]
[1751272889407,0.26614865,654.49,653.46,3.097]
[1751272891012,0.26614865,654.49,653.14,1.1464386]
[1751272891313,0.26614865,654.49,653.47,2.457]
[1751272892312,0.26614865,654.49,653.48,2.859]
[1751272893510,0.26614865,654.49,653.49,2.185]
[1751272902514,3.8084699,654.48,653.49,2.185]
[1751272903420,0.26614865,654.49,653.49,2.185]
[1751272905621,0.26614865,654.49,653.5,3.307]
[1751272909724,3.8084699,654.46,653.5,3.307]
[1751272910220,0.26614865,654.49,653.5,3.307]
[1751272914324,0.26614865,654.49,653.51,2.386]
[1751272914724,0.26614865,654.49,653.52,2.074]
[1751272915531,3.8084699,654.48,653.52,2.074]
[1751272916031,0.26614865,654.49,653.52,2.074]
[1751272916032,3.8084699,654.41,653.52,2.074]
[1751272917427,3.8084699,654.42,653.52,2.074]
[1751272918630,3.8084699,654.4,653.52,2.074]
[1751272919529,4.07461855,654.49,653.52,2.074]
[1751272920228,0.26614865,654.49,653.52,2.074]
[1751272922233,0.26614865,654.49,653.53,2.336]
[1751272923936,4.07461855,654.49,653.53,2.336]
[1751272924338,3.8084699,654.48,653.53,2.336]
[1751272925536,0.26614865,654.49,653.53,2.336]
[1751272926041,3.8084699,654.46,653.53,2.336]
[1751272926442,3.8084699,654.47,653.53,2.336]
[1751272927444,3.8084699,654.44,653.53,2.336]
[1751272928044,3.8084699,654.38,653.53,2.336]
[1751272928642,3.8084699,654.08,653.53,2.336]
[1751272929147,3.8084699,654.05,653.53,2.336]
[1751272929649,3.8084699,654.1,653.53,2.336]
[1751272930147,3.8084699,654.21,653.53,2.336]
[1751272931048,3.8084699,654.29,653.53,2.336]
[1751272932250,3.8084699,654.3,653.53,2.336]
[1751272933447,3.8084699,654.29,653.53,2.336]
[1751272934248,3.8084699,654.33,653.53,2.336]
[1751272936352,3.8084699,654.34,653.53,2.336]
[1751272937352,3.8084699,654.35,653.53,2.336]
[1751272937859,3.8084699,654.34,653.53,2.336]
[1751272938560,3.8084699,654.35,653.53,2.336]
[1751272939062,3.8084699,654.34,653.53,2.336]
[1751272939460,3.8084699,654.35,653.53,2.336]
[1751272939955,3.8084699,654.32,653.53,2.336]
[1751272940656,3.8084699,654.33,653.53,2.336]
[1751272941058,3.8084699,654.26,653.53,2.336]
[1751272943559,3.8084699,654.26,653.54,2.473]
[1751272944164,3.8084699,654.19,653.54,2.473]
[1751272946265,3.8084699,654.18,653.54,2.473]
[1751272946970,3.8084699,654.38,653.54,2.473]
[1751272947466,3.8084699,654.37,653.54,2.473]
[1751272948368,3.8084699,654.35,653.55,2.52]
[1751272948864,3.8084699,654.42,653.55,2.52]
[1751272949465,3.8084699,654.43,653.55,2.52]
[1751272950066,3.8084699,654.44,653.55,2.52]
[1751272950468,3.8084699,654.42,653.55,2.52]
[1751272951466,3.8084699,654.44,653.55,2.52]
[1751272952767,3.8084699,654.43,653.55,2.52]
[1751272954869,3.8084699,654.45,653.55,2.52]
[1751272955169,3.8084699,654.44,653.55,2.52]
[1751272956670,3.8084699,654.4,653.55,2.52]
[1751272958370,3.8084699,654.41,653.55,2.52]
[1751272958870,3.8084699,654.35,653.55,2.52]
[1751272959271,3.8084699,654.34,653.55,2.52]
[1751272959878,3.8084699,654.21,653.55,2.52]
[1751272960370,3.8084699,654.19,653.55,2.52]
[1751272961075,3.8084699,654.29,653.55,2.52]
[1751272961574,3.8084699,654.24,653.55,2.52]
[1751272962476,3.8084699,654.23,653.55,2.52]
[1751272963475,3.8084699,654.22,653.55,2.52]
[1751272964678,3.8084699,654.19,653.55,2.52]
[1751272965690,3.8084699,654.21,653.55,2.52]
[1751272966175,3.8084699,654.24,653.55,2.52]
[1751272966782,3.8084699,654.21,653.55,2.52]
[1751272967779,3.8084699,654.18,653.55,2.52]
[1751272968082,3.8084699,654.18,653.56,2.745]
[1751272969882,3.8084699,654.3,653.56,2.745]
[1751272970383,3.8084699,654.29,653.56,2.745]
[1751272970882,3.8084699,654.24,653.56,2.745]
[1751272971382,3.8084699,654.24,653.57,2.641]
[1751272971783,3.8084699,654.23,653.57,2.641]
[1751272972985,3.8084699,654.25,653.57,2.641]
[1751272973383,3.8084699,654.24,653.57,2.641]
[1751272974588,3.8084699,654.23,653.57,2.641]
[1751272975485,3.8084699,654.19,653.57,2.641]
[1751272976084,3.8084699,654.18,653.57,2.641]
[1751272976590,3.8084699,654.17,653.57,2.641]
[1751272977086,3.8084699,654.14,653.57,2.641]
[1751272977587,3.8084699,654.15,653.57,2.641]
[1751272978187,3.8084699,654.13,653.57,2.641]
[1751272978790,5.3318579,654.41,653.57,2.641]
[1751272978791,3.8084699,654.12,653.57,2.641]
[1751272979693,3.8084699,654.1,653.57,2.641]
[1751272979893,3.8084699,654.1,653.58,3.46]
[1751272983301,3.8084699,654.31,653.58,3.46]
[1751272985002,3.8084699,654.32,653.58,3.46]
[1751272987204,3.8084699,654.34,653.58,3.46]
[1751272988101,3.8084699,654.39,653.58,3.46]
[1751272989606,3.8084699,654.36,653.58,3.46]
[1751272990105,3.8084699,654.28,653.58,3.46]
[1751272991101,3.8084699,654.24,653.58,3.46]
[1751272991704,3.8084699,654.25,653.58,3.46]
[1751272992303,3.8084699,654.24,653.58,3.46]
[1751272992806,3.8084699,654.27,653.58,3.46]
[1751272993303,3.8084699,654.26,653.58,3.46]
[1751272995012,3.8084699,654.25,653.58,3.46]
[1751272996209,3.8084699,654.25,653.57,2.641]
[1751272997009,3.8084699,654.23,653.57,2.641]
[1751272997209,3.8084699,654.23,653.58,2.845]
[1751272998011,3.8084699,654.28,653.58,2.845]
[1751272999812,3.8084699,654.28,653.59,2.72]
[1751273000314,3.8084699,654.27,653.59,2.72]
[1751273000610,3.8084699,654.26,653.59,2.72]
[1751273001811,3.8084699,654.24,653.59,2.72]
[1751273002214,3.8084699,654.21,653.59,2.72]
[1751273005312,3.8084699,654.23,653.59,2.72]
[1751273007418,3.8084699,654.09,653.59,2.72]
[1751273008423,3.8084699,654.08,653.59,2.72]
[1751273009721,3.8084699,654.08,653.57,2.46672409]
[1751273010122,3.8084699,654.02,653.57,2.46672409]
[1751273010523,3.8084699,654.09,653.57,2.46672409]
[1751273011519,3.8084699,654.06,653.57,2.46672409]
[1751273015223,3.8084699,653.92,653.57,2.46672409]
[1751273015727,3.8084699,654.15,653.57,2.46672409]
[1751273016829,3.8084699,654.14,653.57,2.46672409]
[1751273018930,3.8084699,654.4,653.57,2.46672409]
[1751273019432,3.8084699,654.4,653.07,2.568]
[1751273019730,3.8084699,654.4,653.08,1.1472053]
[1751273019930,3.8084699,654.47,653.09,1.1472053]
[1751273020226,3.8084699,654.47,653.1,1.1472053]
[1751273020426,3.8084699,654.48,653.11,1.1472053]
[1751273020632,3.8084699,654.48,653.12,1.1472053]
[1751273020828,3.8084699,654.48,653.13,1.1472053]
[1751273021029,3.8084699,654.47,653.14,1.1472053]
[1751273021228,3.8084699,654.47,653.15,1.1472053]
[1751273021427,3.8084699,654.48,653.16,1.1472053]
[1751273021630,3.8084699,654.48,653.17,1.1472053]
[1751273021929,3.8084699,654.47,653.07,2.568]
[1751273022132,3.8084699,654.47,653.08,1.1405567]
[1751273022333,3.8084699,654.47,653.09,1.1405567]
[1751273022528,3.8084699,654.47,653.1,1.1405567]
[1751273022829,3.8084699,654.47,653.11,1.1405567]
[1751273023029,3.8084699,654.47,653.12,1.1405567]
[1751273023233,3.8084699,654.47,653.13,1.1405567]
[1751273023429,3.8084699,654.47,653.14,1.1405567]
[1751273023634,3.8084699,654.47,653.15,1.1405567]
[1751273023834,3.8084699,654.47,653.16,1.1405567]
[1751273024035,3.8084699,654.47,653.17,1.1405567]
[1751273024334,3.8084699,654.47,653.07,2.568]
[1751273024531,3.8084699,654.48,653.08,1.1364999]
[1751273024734,3.8084699,654.48,653.09,1.1364999]
[1751273024934,3.8084699,654.48,653.1,1.1364999]
[1751273025135,3.8084699,654.48,653.11,1.1364999]
[1751273025334,3.8084699,654.48,653.12,1.1364999]
[1751273025531,3.8084699,654.45,653.13,1.1364999]
[1751273025732,3.8084699,654.45,653.14,1.1364999]
[1751273027237,3.8084699,654.44,653.14,1.1364999]
[1751273028836,3.8084699,654.22,653.14,1.1364999]
[1751273029236,3.8084699,654.21,653.14,1.1364999]
[1751273029940,3.8084699,654.27,653.14,1.1364999]
[1751273030439,3.8084699,654.26,653.14,1.1364999]
[1751273031438,0.26614865,654.49,653.14,1.1364999]
[1751273031439,3.8084699,654.22,653.14,1.1364999]
[1751273034542,3.8084699,654.19,653.14,1.1364999]
[1751273035241,3.8084699,654.22,653.14,1.1364999]
[1751273035641,3.8084699,654.21,653.14,1.1364999]
[1751273036147,3.8084699,654.25,653.14,1.1364999]
[1751273037142,3.8084699,654.29,653.14,1.1364999]
[1751273037845,3.8084699,654.27,653.14,1.1364999]
[1751273039252,3.8084699,654.36,653.14,1.1364999]
[1751273039549,3.8084699,654.36,653.15,1.1364999]
[1751273039744,3.8084699,654.38,653.16,1.1364999]
[1751273039954,3.8084699,654.38,653.17,1.1364999]
[1751273040254,0.26614865,654.49,653.18,1.1364999]
[1751273040447,0.26614865,654.49,653.19,1.1364999]
[1751273040646,0.26614865,654.49,653.2,1.1364999]
[1751273040850,0.26614865,654.49,653.21,1.1364999]
[1751273041047,0.26614865,654.49,653.22,1.1364999]
[1751273041351,0.26614865,654.49,653.19,3.766]
[1751273041646,0.26614865,654.49,653.23,2.755]
[1751273043350,0.26614865,654.49,653.24,1.12217593]
[1751273043553,0.26614865,654.49,653.23,2.755]
[1751273043752,0.26614865,654.49,653.24,1.1221759]
[1751273044054,0.26614865,654.49,653.23,2.755]
[1751273044256,0.26614865,654.49,653.24,1.1221276]
[1751273044551,0.26614865,654.49,653.23,2.755]
[1751273044751,0.26614865,654.49,653.24,1.1221271]
[1751273044955,0.26614865,654.49,653.23,2.755]
[1751273045153,0.26614865,654.49,653.24,1.1221271]
[1751273045362,0.26614865,654.49,653.23,2.755]
[1751273045555,0.26614865,654.49,653.24,1.1220853]
[1751273045754,0.26614865,654.49,653.23,2.755]
[1751273045954,0.26614865,654.49,653.24,1.1220853]
[1751273046158,0.26614865,654.49,653.23,2.755]
[1751273046358,0.26614865,654.49,653.24,1.1220488]
[1751273046557,0.26614865,654.49,653.23,2.755]
[1751273046859,0.26614865,654.49,653.24,1.1220488]
[1751273047055,0.26614865,654.49,653.23,2.755]
[1751273047254,0.26614865,654.49,653.24,1.1220172]
[1751273047454,0.26614865,654.49,653.23,2.755]
[1751273047656,0.26614865,654.49,653.24,1.1220167]
[1751273047853,0.26614865,654.49,653.23,2.755]
[1751273048057,0.26614865,654.49,653.24,1.1220167]
[1751273048258,0.26614865,654.49,653.23,2.755]
[1751273048458,0.26614865,654.49,653.24,1.1219883]
[1751273048659,0.26614865,654.49,653.23,2.755]
[1751273048959,0.26614865,654.49,653.24,1.1219883]
[1751273049155,0.26614865,654.49,653.23,2.755]
[1751273050360,3.8084699,654.36,653.23,2.755]
[1751273052161,0.26614865,654.49,653.23,2.755]
[1751273052162,3.8084699,654.35,653.23,2.755]
[1751273054056,3.8084699,654.31,653.23,2.755]
[1751273054562,3.8084699,654.32,653.23,2.755]
[1751273054958,3.8084699,654.14,653.23,2.755]
[1751273055661,3.8084699,654.14,653.13,1.995]
[1751273055861,3.8084699,654.14,653.14,1.1219014]
[1751273056058,3.8084699,654.14,653.15,1.1219014]
[1751273056263,3.8084699,654.14,653.16,1.1219014]
[1751273056460,3.8084699,654.16,653.17,1.1219014]
[1751273056665,3.8084699,654.16,653.18,1.1219014]
[1751273056866,3.8084699,654.16,653.13,1.995]
[1751273057068,3.8084699,654.16,653.14,1.1218961]
[1751273057366,3.8084699,654.16,653.15,1.1218961]
[1751273057563,3.8084699,654.16,653.16,1.1218961]
[1751273057768,3.8084699,654.16,653.17,1.1218961]
[1751273057972,3.8084699,654.16,653.18,1.1218961]
[1751273058167,3.8084699,654.16,653.17,2.668]
[1751273058369,3.8084699,654.16,653.18,1.1218874]
[1751273058572,3.8084699,654.2,653.17,2.668]
[1751273058768,3.8084699,654.2,653.18,1.1218874]
[1751273059069,3.8084699,654.18,653.18,2.403]
[1751273062173,3.8084699,654.25,653.18,2.403]
[1751273063876,3.8084699,654.24,653.18,2.403]
[1751273064375,3.8084699,654.23,653.18,2.403]
[1751273064774,3.8084699,654.18,653.18,2.403]
[1751273065380,3.8084699,654.15,653.18,2.403]
[1751273065978,3.8084699,654.16,653.18,2.403]
[1751273066176,0.26629936,653.91,653.18,2.403]
[1751273066478,0.26629936,653.91,653.19,1.1218672]
[1751273066681,0.26629936,653.91,653.18,2.403]
[1751273066987,0.26629936,653.91,653.19,1.1218672]
[1751273067177,0.26629936,653.91,653.18,2.403]
[1751273067376,0.26629936,653.91,653.19,1.1218563]
[1751273067583,0.26629936,653.91,653.18,2.403]
[1751273067882,0.26629936,653.91,653.19,1.1218627]
[1751273068079,0.26629936,653.91,653.18,2.403]
[1751273069479,0.26629936,653.91,653.19,1.12186]
[1751273069683,0.26629936,653.91,653.2,1.12186]
[1751273069882,0.26629936,653.91,653.21,1.12186]
[1751273070183,0.26629936,653.91,653.22,1.12186]
[1751273070383,0.26629936,653.91,653.23,1.12186]
[1751273070583,0.26629936,653.91,653.24,1.12186]
[1751273070782,0.26629936,653.91,653.18,2.403]
[1751273070979,0.26629936,653.91,653.19,1.1218622]
[1751273071183,0.26629936,653.91,653.2,1.1218622]
[1751273071384,0.26629936,653.91,653.21,1.1218622]
[1751273071683,0.26629936,653.91,653.22,1.1218622]
[1751273071984,0.26629936,653.91,653.23,1.1218622]
[1751273072181,0.26629936,653.91,653.18,2.403]
[1751273072386,0.26629936,653.91,653.19,1.1218726]
[1751273072686,0.26629936,653.91,653.2,1.1218726]
[1751273072885,0.26629936,653.91,653.21,1.1218726]
[1751273073087,0.26629936,653.91,653.22,1.1218726]
[1751273073286,0.26629936,653.91,653.23,1.1218726]
[1751273073487,0.26629936,653.91,653.24,1.1218726]
[1751273073685,0.26629936,653.91,653.18,2.403]
[1751273073987,0.26629936,653.91,653.19,1.1218813]
[1751273074285,0.26629936,653.91,653.2,1.1218813]
[1751273074485,0.26629936,653.91,653.21,1.1218813]
[1751273074683,0.26629936,653.91,653.22,1.1218813]
[1751273074889,0.26629936,653.91,653.23,1.1218813]
[1751273075089,0.26629936,653.91,653.24,1.1218813]
[1751273075289,0.26629936,653.91,653.18,2.403]
[1751273075590,0.26629936,653.91,653.19,1.1218949]
[1751273075891,0.26629936,653.91,653.2,1.1218949]
[1751273076187,0.26629936,653.91,653.21,1.1218949]
[1751273076384,0.26629936,653.91,653.22,1.1218949]
[1751273076588,0.26629936,653.91,653.23,1.1218949]
[1751273076786,0.26629936,653.91,653.24,1.1218949]
[1751273076986,0.26629936,653.91,653.18,2.403]
[1751273077190,0.26629936,653.91,653.19,1.1218991]
[1751273077389,0.26629936,653.91,653.2,1.1218991]
[1751273077686,0.26629936,653.91,653.21,1.1218991]
[1751273077987,0.26629936,653.91,653.22,1.1218991]
[1751273078186,0.26629936,653.91,653.23,1.1218991]
[1751273078390,0.26629936,653.91,653.24,1.1218991]
[1751273078591,0.26629936,653.91,653.18,2.403]
[1751273078789,0.26629936,653.91,653.19,1.1219126]
[1751273078990,0.26629936,653.91,653.2,1.1219126]
[1751273079290,0.26629936,653.91,653.21,1.1219126]
[1751273079491,0.26629936,653.91,653.22,1.1219126]
[1751273079690,0.26629936,653.91,653.23,1.1219126]
[1751273079888,0.26629936,653.91,653.18,2.403]
[1751273080191,0.26629936,653.91,653.19,1.1165995]
[1751273080486,0.26629936,653.91,653.2,1.1165995]
[1751273080688,0.26629936,653.91,653.21,1.1165995]
[1751273080886,0.26629936,653.91,653.22,1.1165995]
[1751273081087,0.26629936,653.91,653.23,1.1165995]
[1751273081288,0.26629936,653.91,653.18,2.403]
[1751273081492,0.26629936,653.91,653.19,1.116623]
[1751273081793,0.26629936,653.91,653.2,1.116623]
[1751273081991,0.26629936,653.91,653.18,2.403]
[1751273081992,0.26629936,653.91,653.21,1.116623]
[1751273082291,0.26629936,653.91,653.22,1.116623]
[1751273082491,0.26629936,653.91,653.23,1.116623]
[1751273082692,0.26629936,653.91,653.18,2.403]
[1751273082894,0.26629936,653.91,653.19,1.1166375]
[1751273083090,0.26629936,653.91,653.2,1.1166375]
[1751273083291,0.26629936,653.91,653.21,1.1166375]
[1751273083488,0.26629936,653.91,653.22,1.1166375]
[1751273083789,0.26629936,653.91,653.18,2.403]
[1751273083790,0.26629936,653.91,653.23,1.1166375]
[1751273083992,0.26629936,653.91,653.18,2.403]
[1751273084288,0.26629936,653.91,653.19,1.1166433]
[1751273084488,0.26629936,653.91,653.2,1.1166433]
[1751273084788,0.26629936,653.91,653.21,1.1166433]
[1751273084994,0.26629936,653.91,653.22,1.1166433]
[1751273085289,0.26629936,653.91,653.18,2.403]
[1751273085290,0.26629936,653.91,653.23,1.1166433]
[1751273085492,0.26629936,653.91,653.18,2.403]
[1751273085687,0.26629936,653.91,653.19,1.1166619]
[1751273085992,0.26629936,653.91,653.2,1.1166619]
[1751273086191,0.26629936,653.91,653.21,1.1166619]
[1751273086389,0.26629936,653.91,653.22,1.1166619]
[1751273086592,0.26629936,653.91,653.23,1.1166619]
[1751273086792,0.26629936,653.91,653.18,2.403]
[1751273087092,0.26629936,653.91,653.19,1.1166733]
[1751273087292,0.26629936,653.91,653.2,1.1166733]
[1751273087493,0.26629936,653.91,653.21,1.1166733]
[1751273087690,0.26629936,653.91,653.22,1.1166733]
[1751273087989,0.26629936,653.91,653.23,1.1166733]
[1751273088193,0.26629936,653.91,653.01,1.1464386]
[1751273088391,0.26629936,653.91,653.02,2.2631266]
[1751273088591,0.26629936,653.91,653.03,1.116688]
[1751273088794,0.26629936,653.91,653.04,1.116688]
[1751273089090,0.26629936,653.91,653.05,3.318688]
[1751273089292,0.26629936,653.91,653.06,1.116688]
[1751273089593,0.26629936,653.91,653.07,1.116688]
[1751273089788,0.26629936,653.91,653.08,1.116688]
[1751273089990,0.26629936,653.91,653.09,1.116688]
[1751273090293,0.26629936,653.91,653.1,1.116688]
[1751273090494,0.26629936,653.91,653.11,1.116688]
[1751273090690,0.26629936,653.91,653.12,1.116688]
[1751273090994,0.26629936,653.91,653.13,1.116688]
[1751273091190,0.26629936,653.91,653.14,1.116688]
[1751273091491,0.26629936,653.91,653.15,1.116688]
[1751273091694,0.26629936,653.91,653.16,1.116688]
[1751273091890,0.26629936,653.91,653.17,1.116688]
[1751273092096,0.26629936,653.91,653.18,1.116688]
[1751273094998,0.26629936,653.91,653.19,1.116688]
[1751273095198,0.26629936,653.91,653.2,1.116688]
[1751273095396,0.26629936,653.91,653.21,1.116688]
[1751273095695,0.26629936,653.91,653.22,1.1168625]
[1751273095899,0.26629936,653.91,653.23,1.1168625]
[1751273096200,0.26629936,653.91,653.24,1.1168625]
[1751273096401,0.26629936,653.91,653.17,2.685]
[1751273096595,0.26629936,653.91,653.18,1.1168981]
[1751273096798,0.26629936,653.91,653.19,1.1168981]
[1751273097096,0.26629936,653.91,653.2,1.1168981]
[1751273097296,0.26629936,653.91,653.21,1.1168981]
[1751273097497,0.26629936,653.91,653.17,2.685]
[1751273097498,0.26629936,653.91,653.22,1.1168981]
[1751273097697,0.26629936,653.91,653.23,1.1168981]
[1751273097897,0.26629936,653.91,653.24,1.1168981]
[1751273098200,0.26629936,653.91,653.17,2.685]
[1751273098400,0.26629936,653.91,653.18,1.1169871]
[1751273098600,0.26629936,653.91,653.19,1.1169871]
[1751273098798,0.26629936,653.91,653.2,1.1169871]
[1751273099001,0.26629936,653.91,653.21,1.1169871]
[1751273099296,0.26629936,653.91,653.22,1.1169871]
[1751273099501,0.26629936,653.91,653.23,1.1169871]
[1751273099701,0.26629936,653.91,653.24,1.1169871]
[1751273099899,0.26629936,653.91,653.17,2.685]
[1751273100201,0.26629936,653.91,653.18,1.1170461]
[1751273100397,0.26629936,653.91,653.19,1.1170461]
[1751273100597,0.26629936,653.91,653.2,1.1170461]
[1751273100797,0.26629936,653.91,653.21,1.1170461]
[1751273101097,0.26629936,653.91,653.22,1.1170461]
[1751273101300,0.26629936,653.91,653.23,1.1170461]
[1751273101498,0.26629936,653.91,653.24,1.1170461]
[1751273101702,0.26629936,653.91,653.17,2.685]
[1751273101906,0.26629936,653.91,653.18,1.1170592]
[1751273102104,0.26629936,653.91,653.19,1.1170592]
[1751273102402,0.26629936,653.91,653.2,1.1170592]
[1751273102605,0.26629936,653.91,653.21,1.1170592]
[1751273102803,0.26629936,653.91,653.22,1.1170592]
[1751273103003,0.26629936,653.91,653.23,1.1170592]
[1751273103203,0.26629936,653.91,653.24,1.1170592]
[1751273103503,0.26629936,653.91,653.17,2.685]
[1751273103704,0.26629936,653.91,653.18,1.1171489]
[1751273104001,0.26629936,653.91,653.19,1.1171489]
[1751273104205,0.26629936,653.91,653.17,2.685]
[1751273104206,0.26629936,653.91,653.2,1.1171489]
[1751273104404,0.26629936,653.91,653.21,1.1171489]
[1751273104603,0.26629936,653.91,653.22,1.1171489]
[1751273104803,0.26629936,653.91,653.23,1.1171489]
[1751273105002,0.26629936,653.91,653.24,1.1171489]
[1751273105201,0.26629936,653.91,653.17,2.685]
[1751273105401,0.26629936,653.91,653.18,1.1171512]
[1751273105604,0.26629936,653.91,653.19,1.1171512]
[1751273105802,0.26629936,653.91,653.2,1.1171512]
[1751273106005,0.26629936,653.91,653.21,1.1171512]
[1751273106204,0.26629936,653.91,653.22,1.1171512]
[1751273106405,0.26629936,653.91,653.23,1.1171512]
[1751273106604,0.26629936,653.91,653.24,1.1171512]
[1751273106903,0.26629936,653.91,653.17,2.685]
[1751273107106,0.26629936,653.91,653.18,1.1171524]
[1751273107305,0.26629936,653.91,653.19,1.1171524]
[1751273107505,0.26629936,653.91,653.2,1.1171524]
[1751273107808,0.26629936,653.91,653.21,1.1171524]
[1751273108109,0.26629936,653.91,653.22,1.1171524]
[1751273108304,0.26629936,653.91,653.23,1.1171524]
[1751273108604,0.26629936,653.91,653.24,1.1171524]
[1751273108807,0.26629936,653.91,653.05,2.202]
[1751273109004,0.26629936,653.91,653.06,1.1171547]
[1751273109208,0.26629936,653.91,653.07,1.1171547]
[1751273109404,0.26629936,653.91,653.08,1.1171547]
[1751273109708,0.26629936,653.91,653.09,1.1171547]
[1751273110009,0.26629936,653.91,653.1,1.1171547]
[1751273110208,0.26629936,653.91,653.11,1.1171547]
[1751273110504,0.26629936,653.91,653.12,1.1171547]
[1751273110709,0.26629936,653.91,653.13,1.1171547]
[1751273110906,0.26629936,653.91,653.14,1.1171547]
[1751273111109,0.26629936,653.91,653.15,1.1171547]
[1751273111311,0.26629936,653.91,653.16,1.1171547]
[1751273111507,0.26629936,653.91,653.17,1.1171547]
[1751273111706,0.26629936,653.91,653.18,1.1171547]
[1751273111908,0.26629936,653.91,653.19,1.1171547]
[1751273112109,0.26629936,653.91,653.2,1.1171547]
[1751273112409,0.26629936,653.91,653.21,1.1171547]
[1751273112709,0.26629936,653.91,653.22,1.1171547]
[1751273112909,0.26629936,653.91,653.23,1.1171547]
[1751273113111,0.26629936,653.91,653.24,1.1171547]
[1751273113309,0.26629936,653.91,653.15,3.827]
[1751273113509,0.26629936,653.91,653.16,1.1182418]
[1751273113709,0.26629936,653.91,653.17,1.1182418]
[1751273113908,0.26629936,653.91,653.18,1.1182418]
[1751273114212,0.26629936,653.91,653.19,1.1182418]
[1751273114410,0.26629936,653.91,653.2,1.1182418]
[1751273114711,0.26629936,653.91,653.21,1.1182418]
[1751273114912,0.26629936,653.91,653.22,1.1182418]
[1751273115108,0.26629936,653.91,653.23,1.1182418]
[1751273115308,0.26629936,653.91,653.15,3.827]
[1751273115610,0.26629936,653.91,653.16,1.1182633]
[1751273115812,0.26629936,653.91,653.17,1.1182633]
[1751273116012,0.26629936,653.91,653.18,1.1182633]
[1751273116212,0.26629936,653.91,653.19,1.1182633]
[1751273116508,0.26629936,653.91,653.2,1.1182633]
[1751273116714,0.26629936,653.91,653.15,3.827]
[1751273131516,0.26629936,653.91,653.09,2.295]
[1751273132820,0.26629936,653.91,653.05,2.202]
[1751273134121,0.26629936,653.91,652.66,1.147296]
[1751273134317,0.26629936,653.91,652.67,1.0985257]
[1751273134521,0.26629936,653.91,652.68,1.0985257]
[1751273134721,0.26629936,653.91,652.69,1.0985257]
[1751273134922,0.26629936,653.91,652.7,1.0985257]
[1751273135117,0.26629936,653.91,652.71,1.0985257]
[1751273135317,0.26629936,653.91,652.72,1.0985257]
[1751273135522,0.26629936,653.91,652.73,1.0985257]
[1751273135821,0.26629936,653.91,652.74,1.0985257]
[1751273136023,0.26629936,653.91,652.75,1.0985257]
[1751273136323,0.26629936,653.91,652.76,1.0985257]
[1751273136621,0.26629936,653.91,652.77,1.0985257]
[1751273136822,0.26629936,653.91,652.78,1.0985257]
[1751273137016,0.26629936,653.91,652.79,1.0985257]
[1751273137221,0.26629936,653.91,652.8,1.0985257]
[1751273137517,0.26629936,653.91,652.81,1.0985257]
[1751273137818,0.26629936,653.91,652.82,3.5505257]
[1751273138021,0.26629936,653.91,652.83,1.0985257]
[1751273138216,0.26629936,653.91,652.84,1.0985257]
[1751273138421,0.26629936,653.91,652.85,1.0985257]
[1751273138721,0.26629936,653.91,652.86,1.0985257]
[1751273138920,0.26629936,653.91,652.87,1.0985257]
[1751273139121,0.26629936,653.91,652.88,1.0985257]
[1751273139322,0.26629936,653.91,652.89,1.0985257]
[1751273139522,0.26629936,653.91,652.9,1.0985257]
[1751273139723,0.26629936,653.91,652.91,1.0985257]
[1751273139919,0.26629936,653.91,652.82,2.452]
[1751273140121,0.26629936,653.91,652.83,1.0988734]
[1751273140322,0.26629936,653.91,652.84,1.0988734]
[1751273140523,0.26629936,653.91,652.85,1.0988734]
[1751273140724,0.26629936,653.91,652.86,1.0988734]
[1751273140920,0.26629936,653.91,652.87,1.0988734]
[1751273141121,0.26629936,653.91,652.88,1.0988734]
[1751273141319,0.26629936,653.91,652.89,1.0988734]
[1751273141525,0.26629936,653.91,652.9,1.0988734]